Cogmind - Beta 14 @@@ ROGUE MODE // 2024.11.02 @ 23:25:44 Player: Kole Result: Destroyed by U4-OK9(R) with Subdweller Beam Cannon Performance ------------- Evolutions (0) 0 Regions Visited (3) 600 Robots Destroyed (19) 95 Value Destroyed (372) 372 Prototype IDs (1) 20 Alien Tech Used (0) 0 Bonus (0) 0 TOTAL SCORE: 1087 Bonus ------- None Cogmind --------- Core Integrity 0/250 Matter 263/300 Energy 100/100 System Corruption 14% Temperature Cool (9) Movement Walking (120) Location -10/Subcaves Parts ------- > --- POWER (1) -------- (None) > --- PROPULSION (2) --- Aluminum Leg > --- UTILITY (2) ------ Small Storage Unit Structural Scanner > --- WEAPON (2) ------- Particle Gun Light Assault Rifle > --- INVENTORY (8) ---- Experimental Sensor Array EM Pulse Gun Mining Laser Mining Claw Peak State ------------ > --- POWER ------------ Ion Engine > --- PROPULSION ------- Aluminum Leg Aluminum Leg > --- UTILITY ---------- Small Storage Unit Experimental Sensor Array > --- WEAPON ----------- Particle Gun > --- INVENTORY -------- Light Ion Engine Aluminum Leg Structural Scanner EM Pulse Gun Particle Gun Light Assault Rifle Rocket Launcher Mining Laser [Rating: 16] Favorites ----------- Power Ion Engine Engine Ion Engine Propulsion Aluminum Leg Leg Aluminum Leg Utility Small Storage Unit Device Structural Scanner Storage Small Storage Unit Weapon Light Assault Rifle Energy Gun Particle Gun Ballistic Gun Light Assault Rifle Launcher Rocket Launcher Slashing Weapon Mining Claw Build | -11 -10 -10 -10 ------- Run | Yrd Mat Min Sub Slots Evolved . | . . . . Power . | . . . . Propulsion . | . . . . Utility . | . . . . Weapon . | . . . . Parts Attached 26 | 8 4 10 4 Power 3 | 1 1 1 . Engine 3 | 1 1 1 . Core . | . . . . Reactor . | . . . . Propulsion 4 | 2 . 2 . Treads . | . . . . Leg 4 | 2 . 2 . Wheel . | . . . . Hover . | . . . . Flight . | . . . . Utility 8 | 2 2 4 . Device 7 | 1 2 4 . Storage 1 | 1 . . . Processor . | . . . . Hackware . | . . . . Protection . | . . . . Artifact . | . . . . Weapon 11 | 3 1 3 4 Energy Gun 5 | 2 1 1 1 Energy Cannon . | . . . . Ballistic Gun 3 | 1 . . 2 Ballistic Cannon . | . . . . Launcher 2 | . . 1 1 Special Weapon . | . . . . Impact Weapon . | . . . . Slashing Weapon 1 | . . 1 . Piercing Weapon . | . . . . Special Melee Weapon . | . . . . Unidentified Prototypes 1 | . . 1 . Corrupted Parts 1 | . . 1 . System Corruption 5 | . . 5 . Parts Lost 10 | . 2 5 3 Power 3 | . 1 1 1 Propulsion 2 | . . 1 1 Utility 1 | . . 1 . Weapon 4 | . 1 2 1 Highest Loss Streak 4 | . 2 4 3 To Critical Strikes . | . . . . Average Slot Usage (%) 95 | . 99 93 92 Engine 13 | . 14 13 8 Leg 27 | . 28 28 26 Device 13 | . 13 13 14 Storage 14 | . 14 14 14 Energy Gun 13 | . 13 14 14 Ballistic Gun 9 | . 14 5 10 Launcher 1 | . . 1 3 Peak Build Rating 16 | 9 10 16 10 Average Rating 8 | 6 9 9 8 On Entrance 6 | . 9 9 9 Naked Turns . | . . . . Heaviest Build 18 | 14 15 18 15 Greatest Support 20 | 20 20 20 20 Greatest Overweight (x) . | . . . . Average Overweight (x) . | . . . . Largest Inventory Capacity 8 | 8 8 8 8 Average Capacity 7 | 7 8 8 8 Most Carried 8 | 5 8 8 5 Average Carried 5 | 2 5 7 4 Final Capacity 8 | 8 8 8 8 Final Carried 8 | 3 8 5 4 Class Distribution -------------------- 87% | Mutant 12% | Scavenger-Mutant Dominant Class ---------------- Mutant | -10/Materials Mutant | -10/Mines Scavenger-Mutant | -10/Subcaves Resources | -11 -10 -10 -10 ----------- Run | Yrd Mat Min Sub Matter Collected 531 | 285 64 125 57 Remotely . | . . . . Salvage Created 701 | 104 383 193 21 Parts 39 | 6 22 11 . Haulers Intercepted . | . . . . Recyclers Shooed . | . . . . Parts Field Recycled . | . . . . Retrieved Matter . | . . . . Parts Self-Destructed 3 | . . . 3 Prevented . | . . . . Kills | -11 -10 -10 -10 ------- Run | Yrd Mat Min Sub Combat Hostiles Destroyed 22 | . 8 12 2 Guns 16 | . 8 7 1 AOE 6 | . . 5 1 Classes Destroyed 7 | 2 3 1 1 Tunneler 1 | 1 . . . Recycler 3 | 1 1 1 . Watcher 1 | . 1 . . Swarmer 8 | . 3 4 1 Grunt 5 | . 5 . . Sentry 1 | . . . 1 Assembled 8 | . . 8 . Best Kill Streak 8 | 2 5 8 2 Combat Bots Only 8 | . 5 8 2 Max Kills in Single Turn 3 | 1 1 3 1 Gunslinging . | . . . . Exploded 3 | . . 3 1 Melee . | . . . . Uniques/NPCs Destroyed . | . . . . Combat | -11 -10 -10 -10 -------- Run | Yrd Mat Min Sub Hostile Shots Fired 111 | . 38 49 24 Missed 30 | . 11 12 7 Damage Taken 1260 | . 394 606 260 Core 271 | . 84 100 87 Absorbed by Shields . | . . . . Regen/Repaired (Parts) 8 | . 8 . . Core Remaining (%) 100 | 100 . . . Volleys Fired 80 | 5 35 29 11 Largest 2 | 2 2 2 2 Hottest 98 | 70 85 98 98 Shots Fired 139 | 10 70 38 21 Gun 133 | 10 70 36 17 Cannon . | . . . . Launcher 6 | . . 2 4 Special . | . . . . Kinetic 53 | 5 35 7 6 Thermal 67 | 5 35 16 11 Explosive 6 | . . 2 4 Electromagnetic 13 | . . 13 . Robot Hit Streak 11 | 5 11 5 7 Robot Miss Streak 4 | 1 4 3 3 Penetration Max . | . . . . Secondary Targets 1 | . . 1 . Max Gunslinging Chain 1 | . . 1 . Shots Hit Robots 88 | 8 43 23 14 Core Hits 46 | 4 20 18 4 Critical Kills . | . . . . Critical Parts Destroyed . | . . . . Critical Strikes 1 | . 1 . . Burn 1 | . 1 . . Melee Attacks . | . . . . Impact . | . . . . Slashing . | . . . . Piercing . | . . . . Sneak Attacks . | . . . . Combat Hostiles . | . . . . Follow-up Attacks . | . . . . Damage Inflicted 1385 | 89 476 560 260 Guns 990 | 89 476 285 140 Cannons . | . . . . Explosions 391 | . . 271 120 Melee . | . . . . Ramming 4 | . . 4 . Kinetic 273 | 39 168 44 22 Thermal 621 | 50 308 145 118 Explosive 391 | . . 271 120 Electromagnetic 96 | . . 96 . Impact . | . . . . Slashing . | . . . . Piercing . | . . . . Highest Corruption 14 | . 3 14 14 Average Corruption 4 | . 2 3 14 Corruption Purged . | . . . . Corruption Blocked . | . . . . Effects 24 | . 6 13 5 Message Errors 8 | . 3 2 3 Matter Fused 4 | . 1 2 1 Heat Flow Errors 2 | . . 1 1 Energy Discharges 5 | . . 5 . Data Loss (minor) 2 | . 1 1 . Data Loss (major) 2 | . 1 1 . Misfires 1 | . . 1 . Overload Shots . | . . . . Overflow Damage 9 | . . 9 . Projectiles . | . . . . Explosions 9 | . . 9 . Melee . | . . . . Knockbacks . | . . . . Impact . | . . . . Kinetic . | . . . . Secondary . | . . . . Self-Inflicted Damage . | . . . . Shots . | . . . . Rammed . | . . . . Targets Rammed 1 | . . 1 . Kicked 1 | . . 1 . Crushed . | . . . . Highest Temperature 227 | 50 155 227 96 Average Temperature 52 | 24 60 49 19 Received Heat Transfer 250 | . 129 40 81 Siege Activations . | . . . . Robots Corrupted . | . . . . Combat Hostiles . | . . . . Parts Fried . | . . . . Impact Corruptions . | . . . . Robots Melted . | . . . . Combat Hostiles . | . . . . Parts Melted 1 | . 1 . . Heat Transferred 1702 | 148 925 333 296 Parts Sabotaged . | . . . . Parts Stolen . | . . . . Parts Stripped . | . . . . Power Chain Reactions . | . . . . Alert | -11 -10 -10 -10 ------- Run | Yrd Mat Min Sub Peak Influence 227 | 10 227 130 . Initial 24 | . 6 24 . Average 76 | 5 106 66 . Maximum Alert Level 1 | . 1 . . Low Security (%) 88 | 100 73 100 . Level 1 11 | . 26 . . Level 2 . | . . . . Level 3 . | . . . . Level 4 . | . . . . Level 5 . | . . . . High Security . | . . . . Max Security . | . . . . Squads Dispatched 3 | . 3 . . Investigation 1 | . 1 . . Extermination . | . . . . Reinforcement 2 | . 2 . . Assault . | . . . . Garrison . | . . . . Intercept . | . . . . Searches Triggered . | . . . . Construction Impeded . | . . . . Haulers Reinforced . | . . . . Active Scanning Responses . | . . . . Cargo Convoy Interrupts . | . . . . Stealth | -11 -10 -10 -10 --------- Run | Yrd Mat Min Sub Distress Signals . | . . . . Communications Jammed . | . . . . Distress Signals . | . . . . Times Spotted 30 | . 10 17 3 Peak Tracking Total 12 | . 3 12 2 Tactical Retreats 4 | . 2 2 . Traps | -11 -10 -10 -10 ------- Run | Yrd Mat Min Sub Traps Triggered 4 | . 4 . . Indirectly . | . . . . Trap Hack Attempts . | . . . . Triggered . | . . . . Disarmed . | . . . . Reprogrammed . | . . . . Reused . | . . . . Traps Extracted . | . . . . Installed . | . . . . Triggered . | . . . . Machines | -11 -10 -10 -10 ---------- Run | Yrd Mat Min Sub Machines Disabled 1 | . 1 . . Max in Single Turn 1 | . 1 . . Machines Repaired . | . . . . Machines Dismantled . | . . . . Machines Sabotaged . | . . . . Overloaded Fab Kills . | . . . . Hacking | -11 -10 -10 -10 --------- Run | Yrd Mat Min Sub Machines Accessed 6 | . 5 1 . Terminals 3 | . 2 1 . Fabricators . | . . . . Repair Stations 1 | . 1 . . Recycling Units 2 | . 2 . . Scanalyzers . | . . . . Garrison Access . | . . . . Total Hacks 13 | . 11 2 . Successful 6 | . 5 1 . Failed 7 | . 6 1 . Catastrophic 4 | . 3 1 . Database Lockouts . | . . . . Manual 2 | . . 2 . Terminals 6 | . 4 2 . Fabricators . | . . . . Repair Stations 3 | . 3 . . Recycling Units 4 | . 4 . . Scanalyzers . | . . . . Garrison Access . | . . . . Terminal Hacks 1 | . . 1 . Zone Layout 1 | . . 1 . Fabricator Hacks . | . . . . Repair Station Hacks 2 | . 2 . . Scan Component 1 | . 1 . . Repair 1 | . 1 . . Recycling Unit Hacks 3 | . 3 . . Report Inventory 1 | . 1 . . Retrieve Components 2 | . 2 . . Scanalyzer . | . . . . Garrison Access Hacks . | . . . . Unauthorized Hacks . | . . . . Terminals . | . . . . Fabricators . | . . . . Repair Stations . | . . . . Recycling Units . | . . . . Scanalyzers . | . . . . Garrison Access . | . . . . Data Cores Recovered . | . . . . Used . | . . . . Hacking Detections 5 | . 4 1 . Full Trace Events 1 | . 1 . . Feedback Events . | . . . . Feedback Blocked . | . . . . Robot Schematics Acquired . | . . . . Robots Built . | . . . . Authchips . | . . . . Time . | . . . . Total Robot Build Rating . | . . . . Part Schematics Acquired . | . . . . Parts Built . | . . . . Authchips . | . . . . Time . | . . . . Total Part Build Rating . | . . . . Parts Repaired 1 | . 1 . . Time 26 | . 26 . . Parts Recycled . | . . . . Recycled Matter . | . . . . Retrieved Matter . | . . . . Retrieved Components 10 | . 10 . . Parts Scanalyzed . | . . . . Part Schematics Acquired . | . . . . Parts Damaged . | . . . . Bothacking | -11 -10 -10 -10 ------------ Run | Yrd Mat Min Sub Used RIF Installer . | . . . . Robots Hacked . | . . . . Non-combat . | . . . . Combat . | . . . . Robot Hacks Applied . | . . . . Relay Couplers Released . | . . . . Fabnet Peak Effective % . | . . . . Robots Rewired . | . . . . Allies Hacked . | . . . . Hacks Repelled . | . . . . Allies | -11 -10 -10 -10 -------- Run | Yrd Mat Min Sub Total Allies . | . . . . Largest Group . | . . . . Highest-Rated Group . | . . . . Highest-Rated Ally . | . . . . Total Orders . | . . . . Ally Attacks . | . . . . Total Damage . | . . . . Kills . | . . . . Allies Corrupted . | . . . . Allies Melted . | . . . . Intel | -11 -10 -10 -10 ------- Run | Yrd Mat Min Sub Robot Analysis Total . | . . . . Derelict Logs Recovered 2 | . . 2 . Drone Launches . | . . . . Drone Recoveries . | . . . . Exploration | -11 -10 -10 -10 ------------- Run | Yrd Mat Min Sub Turns Passed 1506 | 178 608 567 153 Spaces Moved 894 | 76 339 382 97 Core 9 | 9 . . . Treads . | . . . . Legs 885 | 67 339 382 97 Wheels . | . . . . Hover . | . . . . Flight . | . . . . Fastest Speed 50 | 50 120 120 120 Average Speed 119 | 111 120 120 120 Slowest Speed 120 | 120 120 120 120 Overloaded Moves . | . . . . Propulsion Burnouts . | . . . . Robots Hopped . | . . . . Cave-ins Triggered . | . . . . Exploration Rate (%) 30 | 5 55 52 9 Regions Visited 3 Branch Regions 2 Pre-discovered Areas 1 | . . 1 . Known Exits Taken . | . . . . Unknown Exits Taken 3 | 1 1 1 . Scrap Searched 1 | . . 1 . Spaces Dug . | . . . . Terrain Destroyed 51 | . . 25 26 Melee . | . . . . Projectile . | . . . . AOE 51 | . . 25 26 Terrain Rammed . | . . . . Walls Destroyed . | . . . . Machines Disabled . | . . . . Actions | -11 -10 -10 -10 --------- Run | Yrd Mat Min Sub Total 1200 | 159 476 453 112 Wait 180 | 61 92 27 . Move 891 | 75 338 381 97 Hop . | . . . . Pick Up 20 | 10 7 3 . Fast Attach 2 | . 1 1 . Attach 14 | 7 2 4 1 Detach . | . . . . Swap 10 | 1 1 5 3 Drop 2 | . . 2 . Fire 80 | 5 35 29 11 Melee . | . . . . Ram . | . . . . Kick 1 | . . 1 . Crush . | . . . . Escape Stasis . | . . . . Rewire . | . . . . Trap . | . . . . Miscellaneous . | . . . . Route ------- -11/Scrapyard -10/Materials (discovered 3 exits: [*Mat] / *Min x2) -10/Mines -10/Subcaves History --------- Turn | Location | Event 5 | -11/Scrapyard | Discovered new exit (range 16) 179 | -11/Scrapyard | Entered Materials 179 | -10/Materials | Discovered new exit (range 14) 313 | -10/Materials | Build established: Mutant 513 | -10/Materials | Discovered new exit (range 10) 692 | -10/Materials | Repaired Structural Scanner 741 | -10/Materials | Discovered new exit (range 10) 787 | -10/Materials | Entered Mines 794 | -10/Mines | Received a Rocket Launcher from a helpful Derelict 862 | -10/Mines | Learned Materials stockpile data 1001 | -10/Mines | Core integrity fell below 50% 1059 | -10/Mines | Learned location of Storage (-8) 1079 | -10/Mines | Found a damaged Exp. Sensor Array with a note attached 1084 | -10/Mines | Found Prototype Device 1085 | -10/Mines | Identified Exp. Sensor Array 1252 | -10/Mines | Assembled infested the area 1279 | -10/Mines | Discovered new exit (range 16) 1323 | -10/Mines | Lost 4 parts (1p1n1u1w) 1329 | -10/Mines | System corruption reached 10% 1342 | -10/Mines | Destroyed 8 combat bots 1354 | -10/Mines | Entered Subcaves 1451 | -10/Subcaves | Core integrity fell below 20% 1507 | -10/Subcaves | Destroyed by U4-OK9(R) with Subdweller Beam Cannon Last Messages --------------- 01381_ Acquired 6 matter. 01384_ AX-6X6(O) collects matter. 01396_ VP6YSZ5LOI<PPQ 01417_ Acquired 13 matter. 01434_ Acquired 5 matter. 01443_ Destroyed Lgt. Ion Engine. 01449_ Lgt. Ion Engine destroyed. 01450_ T9MZ LPL=TBFJ